[Event "*** Titled Tuesday 3|2 Blitz (Early)"]
[Site "Chess.com"]
[Date "2017.01.03"]
[Round "2"]
[White "Spas_Kozhuharov"]
[Black "Sanan_Sjugirov"]
[Result "1/2-1/2"]
[WhiteElo "2470"]
[BlackElo "2645"]
[TimeControl "180+2"]
[EndTime "11:24:56 PST"]
[Termination "Game drawn - insufficient material"]

1. d4 {[%clk 0:02:58.5]} 1... Nf6 {[%clk 0:02:59.8]} 2. c4 {[%clk 0:02:59.2]}
2... e6 {[%clk 0:02:59.8]} 3. Nc3 {[%clk 0:02:59.1]} 3... Bb4 {[%clk 0:02:59.9]}
4. Qc2 {[%clk 0:03:00]} 4... O-O {[%clk 0:02:59]} 5. a3 {[%clk 0:03:00.5]} 5...
Bxc3+ {[%clk 0:02:59.3]} 6. Qxc3 {[%clk 0:03:01.7]} 6... d5 {[%clk 0:03:00.4]}
7. Bg5 {[%clk 0:02:54.6]} 7... c5 {[%clk 0:02:56.1]} 8. cxd5 {[%clk 0:02:49.7]}
8... cxd4 {[%clk 0:02:56.3]} 9. Qxd4 {[%clk 0:02:45.9]} 9... Nc6 {[%clk
0:02:57]} 10. Qh4 {[%clk 0:02:40.2]} 10... exd5 {[%clk 0:02:57.7]} 11. Bxf6
{[%clk 0:02:33.6]} 11... gxf6 {[%clk 0:02:58.2]} 12. e3 {[%clk 0:02:32.7]} 12...
Bf5 {[%clk 0:02:52.7]} 13. Nf3 {[%clk 0:02:25.9]} 13... Re8 {[%clk 0:02:44.1]}
14. Be2 {[%clk 0:02:21.5]} 14... d4 {[%clk 0:02:42.7]} 15. O-O {[%clk
0:01:44.2]} 15... dxe3 {[%clk 0:02:32.3]} 16. fxe3 {[%clk 0:01:43.7]} 16... Rxe3
{[%clk 0:02:30.7]} 17. Bc4 {[%clk 0:01:33.2]} 17... Bg6 {[%clk 0:02:27.1]} 18.
Kh1 {[%clk 0:01:29.3]} 18... Re4 {[%clk 0:02:25.4]} 19. Bxf7+ {[%clk 0:01:24.3]}
19... Kg7 {[%clk 0:01:41.7]} 20. Qg3 {[%clk 0:01:17.3]} 20... Qb8 {[%clk
0:01:41.6]} 21. Qxb8 {[%clk 0:01:06.8]} 21... Rxb8 {[%clk 0:01:43.5]} 22. Bd5
{[%clk 0:01:05.1]} 22... Re2 {[%clk 0:01:31.1]} 23. b4 {[%clk 0:01:06.2]} 23...
Rd8 {[%clk 0:01:27.2]} 24. Rfd1 {[%clk 0:01:03.3]} 24... Bc2 {[%clk 0:01:24.2]}
25. Re1 {[%clk 0:00:58.7]} 25... Rxe1+ {[%clk 0:01:21.5]} 26. Nxe1 {[%clk
0:01:00.6]} 26... Rxd5 {[%clk 0:01:00]} 27. Nxc2 {[%clk 0:01:00.6]} 27... Rd3
{[%clk 0:00:58]} 28. Kg1 {[%clk 0:00:59.3]} 28... Rc3 {[%clk 0:00:56.6]} 29. Ra2
{[%clk 0:00:53.3]} 29... Ne5 {[%clk 0:00:49.2]} 30. Nd4 {[%clk 0:00:52.1]} 30...
Nc4 {[%clk 0:00:33.4]} 31. Nb5 {[%clk 0:00:43.8]} 31... Rc1+ {[%clk 0:00:34]}
32. Kf2 {[%clk 0:00:45.1]} 32... a6 {[%clk 0:00:35.5]} 33. Nd4 {[%clk
0:00:45.7]} 33... Rc3 {[%clk 0:00:36.4]} 34. Ne6+ {[%clk 0:00:43.5]} 34... Kg6
{[%clk 0:00:36.1]} 35. Nc5 {[%clk 0:00:38.9]} 35... Rxa3 {[%clk 0:00:35.8]} 36.
Rxa3 {[%clk 0:00:39]} 36... Nxa3 {[%clk 0:00:37.7]} 37. Nxb7 {[%clk 0:00:40.9]}
37... Nc2 {[%clk 0:00:38.9]} 38. b5 {[%clk 0:00:34]} 38... axb5 {[%clk
0:00:37.4]} 39. Nc5 {[%clk 0:00:33.8]} 39... b4 {[%clk 0:00:36.9]} 40. Ke2
{[%clk 0:00:34.1]} 40... Nd4+ {[%clk 0:00:36.8]} 41. Kd3 {[%clk 0:00:32.9]}
41... Nf5 {[%clk 0:00:34.6]} 42. g3 {[%clk 0:00:32.1]} 42... Nh6 {[%clk
0:00:34.9]} 43. Ne6 {[%clk 0:00:22]} 43... Ng4 {[%clk 0:00:34.7]} 44. h4 {[%clk
0:00:22.4]} 44... Nf2+ {[%clk 0:00:31.3]} 45. Kc4 {[%clk 0:00:21.8]} 45... Kf5
{[%clk 0:00:30.5]} 46. Nf8 {[%clk 0:00:18.5]} 46... h5 {[%clk 0:00:31.1]} 47.
Kxb4 {[%clk 0:00:19.5]} 47... Kg4 {[%clk 0:00:29.4]} 48. Nh7 {[%clk 0:00:17.8]}
48... Ne4 {[%clk 0:00:25.2]} 49. Kc4 {[%clk 0:00:17.7]} 49... Kxg3 {[%clk
0:00:26.4]} 50. Kd4 {[%clk 0:00:18.6]} 50... Kf4 {[%clk 0:00:27.6]} 51. Kd3
{[%clk 0:00:17.1]} 51... f5 {[%clk 0:00:28.6]} 52. Ke2 {[%clk 0:00:18]} 52...
Kg4 {[%clk 0:00:29.7]} 53. Ke3 {[%clk 0:00:17.3]} 53... Ng3 {[%clk 0:00:18.5]}
54. Nf6+ {[%clk 0:00:14.3]} 54... Kxh4 {[%clk 0:00:19.9]} 55. Kf4 {[%clk
0:00:16.2]} 55... Ne4 {[%clk 0:00:19.4]} 56. Nxh5 {[%clk 0:00:16.1]} 56... Kxh5
{[%clk 0:00:19.3]} 57. Kxf5 {[%clk 0:00:16.8]} 1/2-1/2

[Event "*** Titled Tuesday 3|2 Blitz (Early)"]
[Site "Chess.com"]
[Date "2017.01.03"]
[Round "2"]
[White "Morshynska"]
[Black "roldieyi"]
[Result "0-1"]
[WhiteElo "2113"]
[BlackElo "2156"]
[TimeControl "180+2"]
[EndTime "11:25:06 PST"]
[Termination "roldieyi won by resignation"]

1. e4 {[%clk 0:02:43.6]} 1... c6 {[%clk 0:02:57.8]} 2. d4 {[%clk 0:02:44]} 2...
d5 {[%clk 0:02:58.3]} 3. Nd2 {[%clk 0:02:45.3]} 3... dxe4 {[%clk 0:02:59.2]} 4.
Nxe4 {[%clk 0:02:47.2]} 4... Nf6 {[%clk 0:03:00.8]} 5. Nxf6+ {[%clk 0:02:47.5]}
5... exf6 {[%clk 0:03:02.7]} 6. c3 {[%clk 0:02:47.7]} 6... Bd6 {[%clk
0:03:04.6]} 7. Bd3 {[%clk 0:02:48.2]} 7... O-O {[%clk 0:03:06.1]} 8. Ne2 {[%clk
0:02:48.6]} 8... Qc7 {[%clk 0:03:05.9]} 9. Qc2 {[%clk 0:02:45.7]} 9... h6 {[%clk
0:03:06.1]} 10. Be3 {[%clk 0:02:44.7]} 10... Re8 {[%clk 0:03:04]} 11. O-O-O
{[%clk 0:02:42.8]} 11... b5 {[%clk 0:03:03.8]} 12. h4 {[%clk 0:02:36.7]} 12...
a5 {[%clk 0:03:03]} 13. h5 {[%clk 0:02:32.2]} 13... a4 {[%clk 0:03:01.8]} 14. a3
{[%clk 0:02:30.2]} 14... Nd7 {[%clk 0:02:54.6]} 15. Qd2 {[%clk 0:02:05.1]} 15...
Bf8 {[%clk 0:02:39.7]} 16. Ng3 {[%clk 0:01:47.7]} 16... Nb6 {[%clk 0:02:38.7]}
17. Bb1 {[%clk 0:01:40.1]} 17... f5 {[%clk 0:01:14]} 18. Nxf5 {[%clk 0:01:32.3]}
18... Bxf5 {[%clk 0:01:13.9]} 19. Bxf5 {[%clk 0:01:34.2]} 19... Nc4 {[%clk
0:01:15.2]} 20. Qd3 {[%clk 0:01:27.1]} 20... Qd6 {[%clk 0:01:03.7]} 21. Kb1
{[%clk 0:00:59.4]} 21... Qd5 {[%clk 0:00:43.1]} 22. Rde1 {[%clk 0:00:15]} 22...
Bxa3 {[%clk 0:00:40.8]} 23. Re2 {[%clk 0:00:09.8]} 23... Bf8 {[%clk 0:00:36.1]}
24. f3 {[%clk 0:00:08.8]} 24... a3 {[%clk 0:00:25.8]} 25. b4 {[%clk 0:00:06.2]}
25... Nb2 {[%clk 0:00:19.8]} 26. Qc2 {[%clk 0:00:05.9]} 26... Na4 {[%clk
0:00:20]} 27. Bh7+ {[%clk 0:00:06.5]} 27... Kh8 {[%clk 0:00:17.7]} 28. Be4
{[%clk 0:00:08.4]} 28... Qc4 {[%clk 0:00:17.6]} 29. Bd2 {[%clk 0:00:08.9]} 29...
a2+ {[%clk 0:00:14]} 30. Ka1 {[%clk 0:00:09.8]} 30... Nb6 {[%clk 0:00:10.4]} 31.
Bd3 {[%clk 0:00:10.6]} 31... Qd5 {[%clk 0:00:10.5]} 32. Re4 {[%clk 0:00:11.2]}
32... Nc4 {[%clk 0:00:10.2]} 33. Bc1 {[%clk 0:00:11.8]} 33... Na3 {[%clk
0:00:09.6]} 34. Qe2 {[%clk 0:00:11.6]} 34... Rxe4 {[%clk 0:00:09.5]} 35. fxe4
{[%clk 0:00:13.5]} 35... Qb3 {[%clk 0:00:10.1]} 36. Qb2 {[%clk 0:00:10]} 36...
Qe6 {[%clk 0:00:08.5]} 37. e5 {[%clk 0:00:10.8]} 37... Qd5 {[%clk 0:00:08]} 38.
g4 {[%clk 0:00:10.7]} 38... Nc4 {[%clk 0:00:08.8]} 39. Qh2 {[%clk 0:00:09.1]}
39... Bxb4 {[%clk 0:00:08.8]} 40. cxb4 {[%clk 0:00:09.4]} 40... Qxd4+ {[%clk
0:00:09.4]} 41. Bb2 {[%clk 0:00:09.7]} 41... Qxd3 {[%clk 0:00:10.4]} 42. e6
{[%clk 0:00:09.5]} 42... Nxb2 {[%clk 0:00:11.2]} 43. Qxb2 {[%clk 0:00:11]} 43...
fxe6 {[%clk 0:00:12.4]} 44. g5 {[%clk 0:00:12.3]} 44... Qd5 {[%clk 0:00:11]} 45.
Rg1 {[%clk 0:00:11.6]} 45... hxg5 {[%clk 0:00:12]} 46. h6 {[%clk 0:00:12.8]}
46... e5 {[%clk 0:00:10.5]} 47. hxg7+ {[%clk 0:00:13.9]} 47... Kxg7 {[%clk
0:00:12.1]} 48. Rxg5+ {[%clk 0:00:15.4]} 48... Kf6 {[%clk 0:00:11]} 49. Rg1
{[%clk 0:00:16.7]} 49... Qd4 {[%clk 0:00:12.1]} 50. Rf1+ {[%clk 0:00:17.4]}
50... Ke6 {[%clk 0:00:13.5]} 51. Rc1 {[%clk 0:00:17.6]} 51... Qxb2+ {[%clk
0:00:14]} 52. Kxb2 {[%clk 0:00:19.5]} 52... Kd6 {[%clk 0:00:15.3]} 53. Ra1
{[%clk 0:00:18.9]} 53... Ra4 {[%clk 0:00:14.8]} 54. Kb3 {[%clk 0:00:20]} 54...
e4 {[%clk 0:00:15.7]} 55. Kb2 {[%clk 0:00:20.4]} 55... Ke5 {[%clk 0:00:15.2]}
56. Kc3 {[%clk 0:00:22.3]} 56... e3 {[%clk 0:00:15.8]} 57. Kd3 {[%clk
0:00:23.2]} 57... Ra3+ {[%clk 0:00:16.1]} 58. Ke2 {[%clk 0:00:23.8]} 58... Ke4
{[%clk 0:00:17.2]} 59. Ke1 {[%clk 0:00:24.4]} 59... Kd3 {[%clk 0:00:17.6]} 60.
Kd1 {[%clk 0:00:25.1]} 60... e2+ {[%clk 0:00:18]} 61. Ke1 {[%clk 0:00:26.4]}
61... Rb3 {[%clk 0:00:18.2]} 62. Kf2 {[%clk 0:00:22.6]} 62... Rb1 {[%clk
0:00:16.2]} 0-1

[Event "*** Titled Tuesday 3|2 Blitz (Early)"]
[Site "Chess.com"]
[Date "2017.01.03"]
[Round "2"]
[White "BillieKimbah"]
[Black "GrigorGrigorov"]
[Result "1/2-1/2"]
[WhiteElo "2583"]
[BlackElo "2484"]
[TimeControl "180+2"]
[EndTime "11:25:23 PST"]
[Termination "Game drawn by repetition"]

1. Nf3 {[%clk 0:03:01.2]} 1... g6 {[%clk 0:02:59.6]} 2. d4 {[%clk 0:03:00.9]}
2... Nf6 {[%clk 0:02:59.3]} 3. g3 {[%clk 0:03:01.6]} 3... Bg7 {[%clk 0:02:59.6]}
4. Bg2 {[%clk 0:03:02.8]} 4... O-O {[%clk 0:03:00.8]} 5. O-O {[%clk 0:03:03.7]}
5... c5 {[%clk 0:03:01.6]} 6. dxc5 {[%clk 0:03:03.9]} 6... Na6 {[%clk
0:02:59.2]} 7. Be3 {[%clk 0:03:04.3]} 7... Ne4 {[%clk 0:02:33.4]} 8. Bd4 {[%clk
0:03:03.4]} 8... Nexc5 {[%clk 0:02:27.3]} 9. Bxg7 {[%clk 0:03:01.6]} 9... Kxg7
{[%clk 0:02:28.3]} 10. c4 {[%clk 0:02:57.4]} 10... d6 {[%clk 0:02:27.2]} 11. Nc3
{[%clk 0:02:57.5]} 11... Be6 {[%clk 0:02:25.1]} 12. Rc1 {[%clk 0:02:55.3]} 12...
Rc8 {[%clk 0:02:18.5]} 13. b3 {[%clk 0:02:54.7]} 13... Qa5 {[%clk 0:02:16.6]}
14. Qd4+ {[%clk 0:02:45.8]} 14... Kg8 {[%clk 0:02:11.9]} 15. Rfd1 {[%clk
0:02:40.8]} 15... Nb4 {[%clk 0:02:12.5]} 16. Qd2 {[%clk 0:02:36.2]} 16... Nc6
{[%clk 0:02:12]} 17. h4 {[%clk 0:02:15.9]} 17... f6 {[%clk 0:02:01.6]} 18. Qe3
{[%clk 0:02:10.8]} 18... Bf7 {[%clk 0:01:51.6]} 19. Nd4 {[%clk 0:02:07.9]} 19...
Rfe8 {[%clk 0:01:45.2]} 20. Bd5 {[%clk 0:01:57]} 20... Nxd4 {[%clk 0:01:28]} 21.
Bxf7+ {[%clk 0:01:51.1]} 21... Kxf7 {[%clk 0:01:28.3]} 22. Rxd4 {[%clk
0:01:52.7]} 22... Kg7 {[%clk 0:01:16.5]} 23. Rd2 {[%clk 0:01:30.2]} 23... a6
{[%clk 0:01:14.6]} 24. Nd5 {[%clk 0:01:29.4]} 24... Nd7 {[%clk 0:01:11.9]} 25.
b4 {[%clk 0:01:13.5]} 25... Qd8 {[%clk 0:01:11.5]} 26. c5 {[%clk 0:01:13.2]}
26... Ne5 {[%clk 0:01:07.7]} 27. Rdd1 {[%clk 0:00:46.6]} 27... Rc6 {[%clk
0:01:00.2]} 28. a4 {[%clk 0:00:44.8]} 28... Qb8 {[%clk 0:00:55.1]} 29. b5 {[%clk
0:00:41.2]} 29... axb5 {[%clk 0:00:54.5]} 30. axb5 {[%clk 0:00:42.7]} 30... Rxc5
{[%clk 0:00:55.5]} 31. Rxc5 {[%clk 0:00:44.2]} 31... dxc5 {[%clk 0:00:56.6]} 32.
Qxc5 {[%clk 0:00:45.8]} 32... Qd8 {[%clk 0:00:48.4]} 33. b6 {[%clk 0:00:38.9]}
33... Nf7 {[%clk 0:00:43.7]} 34. Ne3 {[%clk 0:00:37.8]} 34... Nd6 {[%clk
0:00:23.4]} 35. h5 {[%clk 0:00:35.5]} 35... Qc8 {[%clk 0:00:23.6]} 36. Qd5
{[%clk 0:00:35.2]} 36... Rd8 {[%clk 0:00:18.3]} 37. Qb3 {[%clk 0:00:25.2]} 37...
Nf7 {[%clk 0:00:18.9]} 38. Rxd8 {[%clk 0:00:19]} 38... Qxd8 {[%clk 0:00:19.5]}
39. hxg6 {[%clk 0:00:19.6]} 39... hxg6 {[%clk 0:00:21.4]} 40. Kg2 {[%clk
0:00:15.3]} 40... Nd6 {[%clk 0:00:21.9]} 41. Qe6 {[%clk 0:00:15.2]} 41... Kf8
{[%clk 0:00:18.2]} 42. Nd5 {[%clk 0:00:16]} 42... Nf7 {[%clk 0:00:18.5]} 43. Nf4
{[%clk 0:00:16.1]} 43... Kg7 {[%clk 0:00:17.1]} 44. Qe4 {[%clk 0:00:16.4]} 44...
Qxb6 {[%clk 0:00:16.1]} 45. Qxg6+ {[%clk 0:00:16.7]} 45... Kf8 {[%clk
0:00:17.3]} 46. Nh5 {[%clk 0:00:15.1]} 46... Qc6+ {[%clk 0:00:16.8]} 47. Kh2
{[%clk 0:00:16.2]} 47... Qc4 {[%clk 0:00:15.2]} 48. Qg7+ {[%clk 0:00:14.5]}
48... Ke8 {[%clk 0:00:16.5]} 49. Nf4 {[%clk 0:00:14.4]} 49... Ne5 {[%clk
0:00:15.8]} 50. Qh8+ {[%clk 0:00:14.7]} 50... Kd7 {[%clk 0:00:16.8]} 51. Qb8
{[%clk 0:00:14.4]} 51... b5 {[%clk 0:00:17.2]} 52. Qb7+ {[%clk 0:00:12.9]} 52...
Kd6 {[%clk 0:00:17.8]} 53. Qb6+ {[%clk 0:00:13.9]} 53... Nc6 {[%clk 0:00:18.4]}
54. Nd3 {[%clk 0:00:12.2]} 54... b4 {[%clk 0:00:17.9]} 55. Qb7 {[%clk
0:00:11.2]} 55... Qe4 {[%clk 0:00:13.9]} 56. Qb6 {[%clk 0:00:04.4]} 56... Qc4
{[%clk 0:00:08.1]} 57. Kg1 {[%clk 0:00:05.3]} 57... b3 {[%clk 0:00:08.8]} 58.
Kh2 {[%clk 0:00:05.6]} 58... Qc2 {[%clk 0:00:07.9]} 59. Kg1 {[%clk 0:00:05.9]}
59... Qd1+ {[%clk 0:00:07.5]} 60. Kg2 {[%clk 0:00:07]} 60... Qxe2 {[%clk
0:00:08.2]} 61. Qxb3 {[%clk 0:00:07.6]} 61... Qe4+ {[%clk 0:00:09.3]} 62. Kg1
{[%clk 0:00:08.2]} 62... Nd4 {[%clk 0:00:10.7]} 63. Qb4+ {[%clk 0:00:08.3]}
63... Kc6 {[%clk 0:00:08.1]} 64. Qc4+ {[%clk 0:00:09.3]} 64... Kb6 {[%clk
0:00:07]} 65. Qc5+ {[%clk 0:00:07.7]} 65... Ka6 {[%clk 0:00:06.7]} 66. Qa3+
{[%clk 0:00:07.7]} 66... Kb5 {[%clk 0:00:06.5]} 67. Qc5+ {[%clk 0:00:06.5]}
67... Ka6 {[%clk 0:00:07.1]} 68. Qc8+ {[%clk 0:00:07.1]} 68... Kb5 {[%clk
0:00:06.8]} 69. Qc5+ {[%clk 0:00:06.4]} 69... Ka6 {[%clk 0:00:07.9]} 70. Qa3+
{[%clk 0:00:07.3]} 70... Kb5 {[%clk 0:00:08.3]} 71. Qb4+ {[%clk 0:00:06.6]}
71... Kc6 {[%clk 0:00:09.6]} 72. Qc4+ {[%clk 0:00:06.5]} 72... Kb6 {[%clk
0:00:10.5]} 73. Qb4+ {[%clk 0:00:07.3]} 73... Kc6 {[%clk 0:00:11]} 74. Qc4+
{[%clk 0:00:07.8]} 1/2-1/2

[Event "*** Titled Tuesday 3|2 Blitz (Early)"]
[Site "Chess.com"]
[Date "2017.01.03"]
[Round "2"]
[White "superjem123"]
[Black "Keranke"]
[Result "0-1"]
[WhiteElo "2464"]
[BlackElo "2596"]
[TimeControl "180+2"]
[EndTime "11:25:37 PST"]
[Termination "Keranke won on time"]

1. c4 {[%clk 0:03:02]} 1... g6 {[%clk 0:02:59.9]} 2. g3 {[%clk 0:03:02.4]} 2...
Bg7 {[%clk 0:03:01]} 3. Bg2 {[%clk 0:03:04.3]} 3... Nf6 {[%clk 0:03:02.3]} 4.
Nc3 {[%clk 0:03:05.3]} 4... O-O {[%clk 0:03:03.8]} 5. e4 {[%clk 0:03:06.4]} 5...
d6 {[%clk 0:03:05]} 6. Nge2 {[%clk 0:03:05.7]} 6... c5 {[%clk 0:03:05.3]} 7. f4
{[%clk 0:03:06.9]} 7... Nc6 {[%clk 0:03:06.4]} 8. O-O {[%clk 0:03:08]} 8... a6
{[%clk 0:03:07.6]} 9. d3 {[%clk 0:03:08.7]} 9... Rb8 {[%clk 0:03:08.4]} 10. h3
{[%clk 0:03:08.5]} 10... Ne8 {[%clk 0:03:09.1]} 11. f5 {[%clk 0:03:03]} 11... b5
{[%clk 0:03:08.3]} 12. g4 {[%clk 0:03:02.4]} 12... Ne5 {[%clk 0:03:05.6]} 13. b3
{[%clk 0:02:54.2]} 13... b4 {[%clk 0:03:02.8]} 14. Nd5 {[%clk 0:02:55.5]} 14...
e6 {[%clk 0:02:43.7]} 15. f6 {[%clk 0:02:03.4]} 15... Nxf6 {[%clk 0:02:43.4]}
16. Nxf6+ {[%clk 0:02:02.7]} 16... Bxf6 {[%clk 0:02:44.3]} 17. Bh6 {[%clk
0:02:04.3]} 17... Bg7 {[%clk 0:02:42.5]} 18. Bxg7 {[%clk 0:02:05.5]} 18... Kxg7
{[%clk 0:02:44.4]} 19. d4 {[%clk 0:02:07.2]} 19... cxd4 {[%clk 0:02:42.2]} 20.
Qxd4 {[%clk 0:02:09.1]} 20... Qb6 {[%clk 0:02:42.9]} 21. Rad1 {[%clk 0:02:03.7]}
21... a5 {[%clk 0:02:23.5]} 22. Kh1 {[%clk 0:01:59.6]} 22... Qxd4 {[%clk
0:02:14]} 23. Rxd4 {[%clk 0:02:01.5]} 23... Rd8 {[%clk 0:01:48.1]} 24. Rfd1
{[%clk 0:01:57.8]} 24... Kf6 {[%clk 0:01:35.9]} 25. c5 {[%clk 0:01:54.3]} 25...
Ba6 {[%clk 0:01:30.9]} 26. Ng1 {[%clk 0:01:50]} 26... Nd3 {[%clk 0:01:11.7]} 27.
Rf1+ {[%clk 0:01:22.3]} 27... Ke7 {[%clk 0:01:08.7]} 28. cxd6+ {[%clk
0:01:05.9]} 28... Rxd6 {[%clk 0:01:02.2]} 29. Rxd6 {[%clk 0:01:06.4]} 29... Kxd6
{[%clk 0:01:02.9]} 30. Rxf7 {[%clk 0:01:07.9]} 30... Nc1 {[%clk 0:01:01.8]} 31.
Ra7 {[%clk 0:00:46.9]} 31... Rb6 {[%clk 0:01:02.2]} 32. Nf3 {[%clk 0:00:47.8]}
32... Nxa2 {[%clk 0:00:58.3]} 33. e5+ {[%clk 0:00:48.3]} 33... Kc5 {[%clk
0:00:58.5]} 34. Bf1 {[%clk 0:00:38.3]} 34... Bxf1 {[%clk 0:00:32.6]} 35. Rxa5+
{[%clk 0:00:39.2]} 35... Rb5 {[%clk 0:00:34.2]} 36. Rxa2 {[%clk 0:00:40.5]}
36... Bd3 {[%clk 0:00:33.7]} 37. Kg1 {[%clk 0:00:32.6]} 37... Be4 {[%clk
0:00:32.7]} 38. Kf2 {[%clk 0:00:28.5]} 38... Bxf3 {[%clk 0:00:31.7]} 39. Kxf3
{[%clk 0:00:30.4]} 39... Kd4 {[%clk 0:00:33.3]} 40. Rc2 {[%clk 0:00:31.5]} 40...
Kxe5 {[%clk 0:00:28.8]} 41. Rc4 {[%clk 0:00:32.9]} 41... Kd5 {[%clk 0:00:30.3]}
42. Ke3 {[%clk 0:00:32.2]} 42... e5 {[%clk 0:00:31.7]} 43. h4 {[%clk 0:00:32.9]}
43... Rb7 {[%clk 0:00:30.9]} 44. g5 {[%clk 0:00:33]} 44... Rb8 {[%clk
0:00:28.4]} 45. Ke2 {[%clk 0:00:29.7]} 45... Ke6 {[%clk 0:00:25.4]} 46. Ke3
{[%clk 0:00:29.3]} 46... Kf5 {[%clk 0:00:26.6]} 47. Ke2 {[%clk 0:00:17.9]} 47...
Rb7 {[%clk 0:00:26.2]} 48. Ke3 {[%clk 0:00:18.7]} 48... Rb6 {[%clk 0:00:18.8]}
49. Ke2 {[%clk 0:00:19.6]} 49... Rb5 {[%clk 0:00:20.4]} 50. Ke3 {[%clk
0:00:20.7]} 50... Rb7 {[%clk 0:00:22.1]} 51. Ke2 {[%clk 0:00:21.4]} 51... Rd7
{[%clk 0:00:06.8]} 52. Rxb4 {[%clk 0:00:21.5]} 52... e4 {[%clk 0:00:08.4]} 53.
Rb8 {[%clk 0:00:14.4]} 53... Kg4 {[%clk 0:00:05.8]} 54. b4 {[%clk 0:00:12.8]}
54... Kxh4 {[%clk 0:00:06.9]} 55. b5 {[%clk 0:00:14.2]} 55... Kxg5 {[%clk
0:00:08.5]} 56. b6 {[%clk 0:00:15]} 56... h5 {[%clk 0:00:07.7]} 57. Rc8 {[%clk
0:00:14.5]} 57... Rb7 {[%clk 0:00:04.5]} 58. Rc5+ {[%clk 0:00:16]} 58... Kf4
{[%clk 0:00:05.2]} 59. Rb5 {[%clk 0:00:17.9]} 59... g5 {[%clk 0:00:06]} 60. Kf2
{[%clk 0:00:18.4]} 60... h4 {[%clk 0:00:06.8]} 61. Kg2 {[%clk 0:00:19.1]} 61...
g4 {[%clk 0:00:07.1]} 62. Rb4 {[%clk 0:00:19.8]} 62... h3+ {[%clk 0:00:08]} 63.
Kh2 {[%clk 0:00:20.7]} 63... Kf3 {[%clk 0:00:09.5]} 64. Rb5 {[%clk 0:00:13]}
64... e3 {[%clk 0:00:09.9]} 65. Rf5+ {[%clk 0:00:13.8]} 65... Ke4 {[%clk
0:00:10.5]} 66. Rb5 {[%clk 0:00:13.9]} 66... e2 {[%clk 0:00:11.6]} 67. Rb4+
{[%clk 0:00:08.3]} 67... Kf3 {[%clk 0:00:12.4]} 68. Rb3+ {[%clk 0:00:05.7]}
68... Kf2 {[%clk 0:00:13.6]} 69. Rb2 {[%clk 0:00:05.3]} 69... Kf1 {[%clk
0:00:14.1]} 70. Rb1+ {[%clk 0:00:04.6]} 70... e1=Q {[%clk 0:00:15.5]} 71. Kh1
{[%clk 0:00:05.5]} 71... Qxb1 {[%clk 0:00:15.3]} 0-1